Workbook

Sheet Sheet1
F3: 2957.6 | G3: 832 | H3: 1534 | I3: =SUM(F3:H3) -> 5323.6
D4: BMO Deposits | F4: SSA | G4: NEBF Pension | H4: Electircal Insur Pension | I4: Total | Q4: Utilities
C5: June | D5: 6381 | F5: 2549 | G5: 782 | H5: 1402 | I5: =SUM(F5:H5) -> 4733 | Q5: ConEd | R5: 25 | S5: Housing & Utilities | W5: Food Clothing, etc. | X5: =SUMIF($S$5:$S$31,W5,$R$5:$R$31) -> 808
C6: July | D6: 6221 | F6: 2549 | G6: 782 | H6: 1402 | I6: =SUM(F6:H6) -> 4733 | Q6: Gas | R6: 100 | S6: Housing & Utilities | W6: Housing & Utilities | X6: =SUMIF($S$5:$S$31,W6,$R$5:$R$31) -> 3322
C7: August | D7: 4739 | F7: 2549 | G7: 782 | H7: 1402 | I7: 4733 | Q7: Garbage | R7: 62 | S7: Housing & Utilities | W7: Veh payments | X7: =SUMIF($S$5:$S$31,W7,$R$5:$R$31) -> 166
D8: =AVERAGE(D5:D7) -> 5780.333333 | F8: =AVERAGE(F5:F7) -> 2549 | G8: =AVERAGE(G5:G7) -> 782 | H8: =AVERAGE(H5:H7) -> 1402 | I8: =AVERAGE(I5:I7) -> 4733 | Q8: Chesapeake Ins | R8: 91 | S8: Other | W8: Veh Operating | X8: =SUMIF($S$5:$S$31,W8,$R$5:$R$31) -> 265
Q9: Car Service/Maint | R9: 166 | S9: Veh payments | W9: Health Ins | X9: =SUMIF($S$5:$S$31,W9,$R$5:$R$31) -> 115
F10: Deductions | Q10: Farmers Life | R10: 139 | S10: Life Insurance | W10: OOP Healthcare | X10: =SUMIF($S$5:$S$31,W10,$R$5:$R$31) -> 160
E11: Federal Tax | F11: 350.9 | G11: 50 | H11: 131.79 | Q11: Verizon | R11: 133 | S11: Housing & Utilities | W11: Life Insurance | X11: =SUMIF($S$5:$S$31,W11,$R$5:$R$31) -> 139
E12: Medical Ins | F12: 57.7 | Q12: Netflix, etc | R12: 150 | S12: Housing & Utilities | W12: Wage Taxes | X12: =SUMIF($S$5:$S$31,W12,$R$5:$R$31) -> 0
Q13: Comcast | R13: 80 | S13: Housing & Utilities | W13: Tax Resolution | X13: =SUMIF($S$5:$S$31,W13,$R$5:$R$31) -> 199
E14: NET: | F14: =F3-SUM(F11:F12) -> 2549 | G14: =G3-SUM(G11:G12) -> 782 | H14: 1402.21 | I14: =SUM(F14:H14) -> 4733.21 | Q14: Auto Ins | R14: 145 | S14: Veh Operating | X14: =SUMIF($S$5:$S$31,W14,$R$5:$R$31) -> 0
Q15: Home Ins | R15: 172 | S15: Housing & Utilities | X15: =SUMIF($S$5:$S$31,W15,$R$5:$R$31) -> 0
Q16: Veh Gas | R16: 120 | S16: Veh Operating | W16: Other | X16: =SUMIF($S$5:$S$31,W16,$R$5:$R$31) -> 682
Q17: Health Ins | R17: 115 | S17: Health Ins | X17: =SUMIF($S$5:$S$31,W17,$R$5:$R$31) -> 0
Q18: CoPays | R18: 160 | S18: OOP Healthcare | X18: =SUMIF($S$5:$S$31,W18,$R$5:$R$31) -> 0
Q19: Mortgage | R19: 2600 | S19: Housing & Utilities | X19: =SUMIF($S$5:$S$31,W19,$R$5:$R$31) -> 0
F20: =F3-F12-K25 -> 2610.2 | Q20: TDN | R20: 199 | S20: Tax Resolution | X20: =SUMIF($S$5:$S$31,W20,$R$5:$R$31) -> 0
Q21: Allowable | R21: 808 | S21: Food Clothing, etc. | X21: =SUMIF($S$5:$S$31,W21,$R$5:$R$31) -> 0
Q22: Fed Tax NEBF Pension | R22: 50 | S22: Other | X22: =SUMIF($S$5:$S$31,W22,$R$5:$R$31) -> 0
Q23: Fed Tax Electrical Pens | R23: 132 | S23: Other | X23: =SUMIF($S$5:$S$31,W23,$R$5:$R$31) -> 0
Q24: SSA Tax | R24: 351 | S24: Other
I25: 2897 | J25: 0.1 | K25: =J25*I25 -> 289.7 | Q25: Medicare | R25: 58 | S25: Other
X26: =SUM(X5:X25) -> 5856
E29: IA OF $375 per month
